bitfinex-derivatives/quotes_BTCF0:USTF0_20241103
["timestamp","ask_amount","ask_price","bid_price","bid_amount"]
[1730648119685,0.0306,67665.0,67664.0,0.07392]
[1730648120912,0.0306,67665.0,67664.0,0.07492]
[1730648122594,0.0634,67665.0,67664.0,0.07592]
[1730648123698,0.3909,67666.0,67664.0,0.07592]
[1730648123699,0.3909,67666.0,67665.0,0.073919]
[1730648124108,0.3909,67666.0,67665.0,0.2942321]
[1730648124798,0.3909,67666.0,67665.0,0.2952321]
[1730648125305,0.3909,67666.0,67665.0,0.2962321]
[1730648127408,0.0301,67666.0,67665.0,0.2962321]
[1730648128199,0.0657,67673.0,67665.0,0.2223131]
[1730648128410,0.0657,67673.0,67672.0,0.073911]
[1730648129809,0.0657,67673.0,67672.0,0.074911]
[1730648130714,0.0657,67673.0,67672.0,0.075911]
[1730648131609,0.0332,67673.0,67672.0,0.075911]
[1730648131824,0.3608,67674.0,67673.0,0.07391]
[1730648132116,0.0333,67681.0,67679.0,0.073904]
[1730648132516,0.0333,67681.0,67680.0,0.22291465]
[1730648132808,0.0333,67681.0,67680.0,0.29681665]
[1730648133016,0.0333,67681.0,67680.0,0.74005665]
[1730648134418,0.0307,67691.0,67682.0,0.0739]
[1730648134718,0.0301,67690.0,67682.0,0.29493942]
[1730648135019,0.0301,67690.0,67689.0,0.073893]
[1730648135411,0.0301,67690.0,67689.0,0.29493242]
[1730648137007,0.0301,67690.0,67689.0,0.73913242]
[1730648137703,0.0301,67690.0,67689.0,0.74013242]
[1730648138111,0.0301,67690.0,67689.0,0.29693242]
[1730648138312,0.0301,67690.0,67689.0,0.22303942]
[1730648138504,0.0301,67690.0,67689.0,0.29693242]
[1730648138704,0.0301,67690.0,67678.0,0.3608]
[1730648138909,0.3608,67685.0,67678.0,0.3608]
[1730648139118,0.3608,67685.0,67679.0,0.22069474]
[1730648139323,0.3608,67685.0,67683.0,0.073899]
[1730648139517,0.434698,67685.0,67683.0,0.073899]
[1730648139818,0.0739,67683.0,67670.0,0.073913]
[1730648140018,0.0739,67683.0,67681.0,0.0739]
[1730648140212,0.3608,67685.0,67679.0,0.22261066]
[1730648140408,0.073902,67681.0,67679.0,0.073903]
[1730648140614,0.073904,67679.0,67678.0,0.001]
[1730648140813,0.073907,67676.0,67675.0,0.073908]
[1730648141015,0.434707,67676.0,67675.0,0.073908]
[1730648142212,0.3608,67676.0,67666.0,0.00221631]
[1730648142723,0.434707,67676.0,67675.0,0.073908]
[1730648144008,0.434707,67676.0,67675.0,0.074908]
[1730648144415,0.438707,67676.0,67675.0,0.074908]
[1730648145013,0.434707,67676.0,67675.0,0.074908]
[1730648145211,0.445707,67676.0,67675.0,0.075908]
[1730648152420,0.3718,67676.0,67675.0,0.075908]
[1730648155134,0.3718,67676.0,67675.0,0.29793974]
[1730648155517,0.3718,67676.0,67675.0,0.075908]
[1730648156024,0.445707,67676.0,67675.0,0.075908]
[1730648158731,0.3718,67676.0,67675.0,0.075908]
[1730648159430,0.011,67676.0,67675.0,0.075908]
[1730648160222,0.084907,67676.0,67675.0,0.075908]
[1730648160428,0.445707,67676.0,67675.0,0.075908]
[1730648161227,0.445707,67676.0,67675.0,0.002]
[1730648162027,0.46417933,67676.0,67675.0,0.002]
[1730648164238,0.46417933,67676.0,67675.0,0.075908]
[1730648165740,0.3718,67676.0,67675.0,0.075908]
[1730648170030,0.3608,67682.0,67681.0,0.073901]
[1730648170233,0.073888,67694.0,67693.0,0.073888]
[1730648170433,0.12632021,67694.0,67682.0,0.22182884]
[1730648170633,0.12632021,67693.0,67692.0,0.073889]
[1730648170834,0.48712021,67693.0,67692.0,0.073889]
[1730648171735,0.48679926,67693.0,67692.0,0.073889]
[1730648171932,0.3748,67693.0,67692.0,0.074889]
[1730648172237,0.014,67693.0,67692.0,0.29680171]
[1730648172743,0.3748,67693.0,67692.0,0.29680171]
[1730648173249,0.021,67693.0,67692.0,0.29780171]
[1730648178848,0.021,67693.0,67692.0,0.075889]
[1730648179140,0.021,67693.0,67692.0,0.29709944]
[1730648182544,0.021,67693.0,67692.0,0.31535686]
[1730648185847,0.073867,67713.0,67706.0,0.073874]
[1730648186337,0.00208001,67715.0,67706.0,0.73769621]
[1730648186533,0.3608,67722.0,67721.0,0.073858]
[1730648188340,0.3678,67722.0,67721.0,0.074858]
[1730648189139,0.3678,67722.0,67721.0,0.075858]
[1730648191149,0.3678,67722.0,67721.0,0.29855994]
[1730648191454,0.007,67722.0,67721.0,0.29855994]
[1730648192147,0.007,67722.0,67721.0,0.075858]
[1730648192652,0.073856,67723.0,67722.0,0.073857]
[1730648192868,0.073857,67722.0,67721.0,0.002]
[1730648193044,0.39631544,67727.0,67716.0,0.073862]
[1730648193246,0.434662,67717.0,67716.0,0.073862]
[1730648193645,0.073868,67712.0,67711.0,0.073868]
[1730648193846,0.073871,67710.0,67709.0,0.07387]
[1730648194061,0.073872,67708.0,67707.0,0.01808214]
[1730648194653,0.0327,67709.0,67701.0,0.3608]
[1730648194654,0.0327,67709.0,67702.0,0.073878]
[1730648194854,0.073878,67703.0,67702.0,0.073878]
[1730648195967,0.073878,67703.0,67702.0,0.001]
[1730648196160,0.106378,67703.0,67702.0,0.001]
[1730648196362,0.106378,67703.0,67702.0,0.074878]
[1730648198661,0.0325,67703.0,67702.0,0.074878]
[1730648198855,0.0325,67703.0,67702.0,0.075878]
[1730648199251,0.0325,67703.0,67702.0,0.074878]
[1730648199454,0.3608,67704.0,67703.0,0.073877]
[1730648200867,0.3608,67704.0,67703.0,0.075877]
[1730648202146,0.434676,67704.0,67703.0,0.075877]
[1730648202753,0.434676,67704.0,67703.0,0.002]
[1730648203153,0.3608,67704.0,67703.0,0.075877]
[1730648204865,0.073875,67706.0,67705.0,0.073875]
[1730648205668,0.073875,67706.0,67705.0,0.073835]
[1730648206966,0.3608,67709.0,67708.0,0.073872]
[1730648207157,0.434671,67709.0,67708.0,0.073872]
[1730648208069,0.434671,67709.0,67708.0,0.074872]
[1730648208969,0.434671,67709.0,67708.0,0.075872]
[1730648211671,0.434671,67709.0,67708.0,0.002]
[1730648211871,0.434671,67709.0,67708.0,0.00066949]
[1730648212067,0.48490497,67709.0,67708.0,0.00066949]
[1730648212267,0.07388,67701.0,67700.0,0.07388]
[1730648212574,0.43468,67701.0,67700.0,0.07388]
[1730648213069,0.073885,67697.0,67696.0,0.073883]
[1730648213278,0.0629,67700.0,67699.0,0.073882]
[1730648213575,0.0629,67700.0,67691.0,0.07389]
[1730648213576,0.3608,67701.0,67700.0,0.073881]
[1730648213975,0.43468,67701.0,67700.0,0.074881]
[1730648214268,0.43468,67701.0,67700.0,0.075881]
[1730648214575,0.43468,67701.0,67700.0,0.074881]
[1730648215263,0.43468,67701.0,67700.0,0.075881]
[1730648217078,0.3608,67701.0,67700.0,0.075881]
[1730648218175,0.073875,67706.0,67705.0,0.073874]
[1730648219769,0.073875,67706.0,67705.0,0.074874]
[1730648220577,0.0316,67707.0,67706.0,0.073874]
[1730648220773,0.105473,67707.0,67706.0,0.073874]
[1730648221268,0.0316,67707.0,67705.0,0.002]
[1730648221470,0.073874,67706.0,67705.0,0.002]
[1730648221675,0.073874,67706.0,67705.0,0.001]
[1730648221882,0.18621367,67706.0,67705.0,0.001]
[1730648222374,0.136174,67706.0,67705.0,0.001]
[1730648222768,0.073881,67701.0,67700.0,0.073879]
[1730648222975,0.434681,67701.0,67700.0,0.073879]
[1730648223781,0.48467847,67701.0,67700.0,0.073879]
[1730648223984,0.48467847,67701.0,67700.0,0.074879]
[1730648224485,0.48467847,67701.0,67700.0,0.075879]
[1730648226172,0.3608,67701.0,67700.0,0.075879]
[1730648227776,0.073878,67703.0,67702.0,0.073878]
[1730648229394,0.0316,67707.0,67706.0,0.073874]
[1730648229578,0.15579189,67707.0,67706.0,0.073874]
[1730648229777,0.105473,67707.0,67706.0,0.073874]
[1730648229978,0.15578,67707.0,67706.0,0.073874]
[1730648230384,0.105473,67707.0,67706.0,0.073874]
[1730648230583,0.105473,67707.0,67706.0,0.074874]
[1730648230893,0.105473,67707.0,67706.0,0.075874]
[1730648231095,0.15587575,67707.0,67706.0,0.075874]
[1730648232174,0.073873,67707.0,67706.0,0.075874]
[1730648233286,0.12441259,67707.0,67706.0,0.075874]
[1730648233512,0.05053959,67707.0,67706.0,0.075874]
[1730648234098,0.41133959,67707.0,67706.0,0.075874]
[1730648234781,0.48521259,67707.0,67706.0,0.075874]
[1730648235483,0.48531002,67707.0,67706.0,0.075874]
[1730648236293,0.48531002,67707.0,67706.0,0.074874]
[1730648236488,0.48531002,67707.0,67706.0,0.075874]
[1730648236688,0.48531002,67707.0,67706.0,0.074874]
[1730648236993,0.48531002,67707.0,67706.0,0.075874]
[1730648237582,0.434673,67707.0,67706.0,0.075874]
[1730648238698,0.48527253,67707.0,67706.0,0.075874]
[1730648239390,0.434673,67707.0,67706.0,0.075874]
[1730648239597,0.3608,67707.0,67706.0,0.075874]
[1730648240688,0.434673,67707.0,67706.0,0.075874]
[1730648241693,0.48543865,67707.0,67706.0,0.075874]
[1730648242195,0.41156565,67707.0,67706.0,0.075874]
[1730648242500,0.3608,67707.0,67706.0,0.075874]
[1730648244190,0.434673,67707.0,67706.0,0.075874]
[1730648244691,0.434673,67707.0,67706.0,0.002]
[1730648244896,0.434673,67707.0,67706.0,0.00066057]
[1730648244897,0.48547772,67707.0,67706.0,0.00066057]
[1730648245696,0.54406086,67707.0,67706.0,0.00066057]
[1730648247696,0.48547772,67707.0,67706.0,0.00066057]
[1730648248285,0.54416232,67707.0,67706.0,0.00066057]
[1730648248600,0.48547772,67707.0,67706.0,0.00066057]
[1730648249102,0.89552253,67707.0,67706.0,0.00066057]
[1730648250009,1.00456734,67707.0,67706.0,0.00066057]
[1730648251395,1.0709916,67707.0,67706.0,0.00066057]
[1730648251899,1.00456734,67707.0,67706.0,0.00066057]
[1730648252105,1.07101188,67707.0,67706.0,0.00066057]
[1730648252401,1.00456734,67707.0,67706.0,0.00066057]
[1730648252608,0.94598178,67707.0,67706.0,0.00066057]
[1730648252898,0.94598178,67707.0,67706.0,0.00062057]
[1730648253202,0.89552253,67707.0,67706.0,0.00062057]
[1730648254202,0.45244253,67707.0,67706.0,0.00062057]
[1730648254791,0.56132526,67707.0,67706.0,0.00062057]
[1730648255504,0.67496526,67707.0,67706.0,0.00062057]
[1730648255997,1.11804526,67707.0,67706.0,0.00062057]
[1730648256202,1.00916253,67707.0,67706.0,0.00062057]
[1730648259700,1.30916253,67707.0,67686.0,0.073896]
[1730648259900,0.3608,67687.0,67681.0,0.00221622]
[1730648260098,0.073896,67686.0,67680.0,0.073902]
[1730648260303,0.0739,67683.0,67681.0,0.0739]
[1730648260600,0.0739,67682.0,67681.0,0.0739]
[1730648261898,0.0739,67682.0,67681.0,0.0879]
[1730648263408,0.0739,67682.0,67681.0,0.1019]
[1730648263605,0.0739,67682.0,67681.0,0.028]
[1730648264805,0.073898,67684.0,67683.0,0.073898]
[1730648265809,0.37842205,67687.0,67681.0,0.028]
[1730648265810,0.0739,67682.0,67681.0,0.028]
[1730648266306,0.0739,67682.0,67681.0,0.087901]
[1730648266697,0.0739,67682.0,67681.0,0.073901]
[1730648266900,0.0739,67682.0,67681.0,0.087901]
[1730648267502,0.0739,67682.0,67681.0,0.014]
[1730648268103,0.0749,67682.0,67681.0,0.028]
[1730648268908,0.0749,67682.0,67681.0,0.014]
[1730648269104,0.0779,67682.0,67681.0,0.015]
[1730648269812,0.0909,67682.0,67681.0,0.001]
[1730648270404,0.4517,67682.0,67681.0,0.001]
[1730648272709,0.8125,67682.0,67681.0,0.001]
[1730648275011,0.8125,67682.0,67681.0,0.0003503]
[1730648279421,0.0909,67682.0,67681.0,0.0003503]
[1730648279624,0.4517,67682.0,67681.0,0.0003503]
[1730648280124,0.89494,67682.0,67681.0,0.0003503]
[1730648280311,1.22686136,67682.0,67661.0,0.0332]
[1730648280513,0.434722,67662.0,67661.0,0.0332]
[1730648280712,0.434722,67662.0,67657.0,0.073927]
[1730648280713,0.3608,67662.0,67657.0,0.073927]
[1730648280921,0.073925,67659.0,67657.0,0.073927]
[1730648281316,0.073925,67659.0,67649.0,0.04419311]
[1730648281317,0.3608,67662.0,67649.0,0.073936]
[1730648281620,0.434732,67653.0,67649.0,0.073936]
[1730648282026,0.434732,67653.0,67647.0,0.00221712]
[1730648282027,0.073933,67652.0,67647.0,0.00221712]
[1730648282234,0.073933,67652.0,67650.0,0.073935]
[1730648284126,0.074933,67652.0,67650.0,0.082935]
[1730648284426,0.074933,67652.0,67651.0,0.073934]
[1730648284427,0.001,67652.0,67651.0,0.073934]
[1730648284619,0.073934,67651.0,67650.0,0.018]
[1730648285713,0.074934,67651.0,67650.0,0.018]
[1730648286117,0.074934,67651.0,67650.0,0.009]
[1730648286921,0.518374,67651.0,67650.0,0.01]
[1730648287124,0.518374,67651.0,67636.0,0.00221764]
[1730648287125,0.073949,67637.0,67636.0,0.00221764]
[1730648287323,0.434749,67637.0,67636.0,0.00221764]
[1730648287723,0.3608,67637.0,67627.0,0.07396]
[1730648288036,0.07396,67627.0,67626.0,0.00018088]
[1730648288924,0.07396,67627.0,67618.0,0.3608]
[1730648288925,0.073964,67624.0,67620.0,0.073968]
[1730648289832,0.001,67627.0,67620.0,0.073968]
[1730648290125,0.3608,67621.0,67620.0,0.009]
[1730648290428,0.434767,67621.0,67620.0,0.009]
[1730648290822,0.434767,67621.0,67613.0,0.0303]
[1730648291019,0.002,67627.0,67626.0,0.073961]
[1730648291420,0.001,67627.0,67626.0,0.073961]
[1730648291628,0.073967,67621.0,67620.0,0.01]
[1730648291933,0.3608,67621.0,67620.0,0.01]
[1730648292118,0.3608,67621.0,67620.0,0.082968]
[1730648292522,0.3618,67621.0,67620.0,0.073968]
[1730648293020,0.3618,67621.0,67613.0,0.0303]
[1730648293225,0.3618,67621.0,67620.0,0.073968]
[1730648294027,0.38023195,67621.0,67620.0,0.073968]
[1730648294228,0.3618,67621.0,67620.0,0.073968]
[1730648294432,0.3628,67621.0,67620.0,0.074968]
[1730648296338,0.3628,67621.0,67620.0,0.008]
[1730648297131,0.436767,67621.0,67620.0,0.008]
[1730648299047,0.880407,67621.0,67620.0,0.008]
[1730648302039,0.073968,67620.0,67600.0,0.0514]
[1730648302337,0.073993,67598.0,67566.0,0.074026]
[1730648302538,0.073993,67598.0,67560.0,0.434834]
[1730648302539,0.3608,67572.0,67560.0,0.434834]
[1730648302733,0.3608,67572.0,67560.0,0.3608]
[1730648303045,0.074027,67566.0,67560.0,0.3608]
[1730648303236,0.11344,67565.0,67550.0,0.038]
[1730648303437,0.3608,67556.0,67550.0,0.038]
[1730648303937,0.11344,67555.0,67550.0,0.038]
[1730648304148,0.3608,67552.0,67550.0,0.038]
[1730648304352,0.11344,67551.0,67550.0,0.038]
[1730648304549,0.3608,67552.0,67550.0,0.038]
[1730648304839,0.3608,67552.0,67550.0,0.046]
[1730648305432,0.3618,67552.0,67550.0,0.045]
[1730648306640,0.3628,67552.0,67550.0,0.045]
[1730648307142,0.3628,67552.0,67550.0,0.046]
[1730648307668,0.3618,67552.0,67550.0,0.038]
[1730648307948,0.3628,67552.0,67550.0,0.046]
[1730648308249,0.3628,67552.0,67550.0,0.038]
[1730648308554,0.3628,67552.0,67550.0,0.046]
[1730648309138,0.436843,67552.0,67550.0,0.046]
[1730648309337,0.3618,67552.0,67550.0,0.046]
[1730648309543,0.3628,67552.0,67550.0,0.049]
[1730648310143,0.074044,67551.0,67550.0,0.046]
[1730648310744,0.074044,67551.0,67550.0,0.039]
[1730648311234,0.074044,67551.0,67550.0,0.038]
[1730648311433,0.074044,67551.0,67550.0,0.039]
[1730648311434,0.080044,67551.0,67550.0,0.039]
[1730648312347,0.087044,67551.0,67550.0,0.039]
[1730648312852,0.200524,67551.0,67550.0,0.039]
[1730648313057,0.201524,67551.0,67550.0,0.039]
[1730648313248,0.215524,67551.0,67550.0,0.039]
[1730648313647,0.201524,67551.0,67550.0,0.039]
[1730648313848,0.214524,67551.0,67550.0,0.039]
[1730648314255,0.201524,67551.0,67550.0,0.038]
[1730648314454,0.214524,67551.0,67550.0,0.039]
[1730648315453,0.200524,67551.0,67550.0,0.039]
[1730648315652,0.213524,67551.0,67550.0,0.039]
[1730648316059,0.3608,67552.0,67550.0,0.039]
[1730648316250,0.3608,67552.0,67550.0,0.038]
[1730648316449,0.100044,67551.0,67550.0,0.039]
[1730648316942,0.099044,67551.0,67550.0,0.039]
[1730648317145,0.086044,67551.0,67550.0,0.039]
[1730648317548,0.081044,67551.0,67550.0,0.039]
[1730648319052,0.092044,67551.0,67550.0,0.04]
[1730648319552,0.085044,67551.0,67550.0,0.04]
[1730648319952,0.074044,67551.0,67550.0,0.04]
[1730648320653,0.074044,67551.0,67550.0,0.039]
[1730648320852,0.074044,67551.0,67550.0,0.04]
[1730648321853,0.074044,67551.0,67550.0,0.039]
[1730648322058,0.074044,67551.0,67550.0,0.04]
[1730648322655,0.085044,67551.0,67550.0,0.04]
[1730648323466,0.095044,67551.0,67550.0,0.04]
[1730648323956,0.095044,67551.0,67526.0,0.1134]
[1730648323957,0.074062,67534.0,67533.0,0.0105821]
[1730648324159,0.074062,67534.0,67527.0,0.10187299]
[1730648324160,0.7216,67534.0,67527.0,0.10187299]
[1730648324357,0.7216,67534.0,67527.0,0.02780299]
[1730648324552,0.7216,67534.0,67529.0,0.074067]
[1730648324948,0.074064,67532.0,67529.0,0.074067]
[1730648325156,0.72364,67534.0,67527.0,0.02780299]
[1730648325351,0.7216,67534.0,67529.0,0.074067]
[1730648325557,0.074066,67531.0,67527.0,0.02780299]
[1730648325764,0.074068,67530.0,67527.0,0.02780299]
[1730648325967,0.074065,67532.0,67529.0,0.074068]
[1730648326164,0.72464,67534.0,67527.0,0.02780299]
[1730648326358,0.7226,67534.0,67527.0,0.02780299]
[1730648326563,0.434869,67528.0,67527.0,0.04180299]
[1730648326861,0.434869,67528.0,67527.0,0.05380299]
[1730648327067,0.434869,67528.0,67527.0,0.03980299]
[1730648327561,0.434869,67528.0,67527.0,0.02780299]
[1730648327762,0.436869,67528.0,67527.0,0.05380299]
[1730648329467,1.181149,67528.0,67521.0,0.12086146]
[1730648329766,0.434875,67522.0,67521.0,0.07238983]
[1730648330065,0.47424,67522.0,67521.0,0.14646583]
[1730648330269,0.47424,67522.0,67521.0,0.3691011]
[1730648330270,0.3109,67522.0,67521.0,0.3691011]
[1730648330461,0.3109,67522.0,67521.0,0.2950251]
[1730648330764,0.47624,67528.0,67521.0,0.15746583]
[1730648330765,0.43687,67528.0,67521.0,0.15746583]
[1730648330977,0.001,67522.0,67521.0,0.09738983]
[1730648331178,0.3618,67522.0,67521.0,0.09738983]
[1730648331371,0.435875,67522.0,67521.0,0.09738983]
[1730648331772,0.3618,67522.0,67521.0,0.17146583]
[1730648331967,0.3618,67522.0,67521.0,0.09738983]
[1730648332271,0.435875,67522.0,67521.0,0.08638983]
[1730648332472,0.881195,67522.0,67521.0,0.08638983]
[1730648332780,0.913795,67522.0,67521.0,0.08638983]
[1730648333177,0.913795,67522.0,67521.0,0.03648983]
[1730648333380,0.550315,67522.0,67521.0,0.03648983]
[1730648333581,0.994635,67522.0,67521.0,0.03648983]
[1730648333883,0.47624,67522.0,67504.0,0.05892415]
[1730648334080,0.3608,67511.0,67510.0,0.074089]
[1730648334273,0.3608,67511.0,67505.0,0.28160663]
[1730648334468,0.3608,67511.0,67510.0,0.074089]
[1730648335679,0.3628,67522.0,67510.0,0.074089]
[1730648335882,0.074077,67521.0,67520.0,0.074076]
[1730648336079,0.3618,67522.0,67521.0,0.074076]
[1730648336385,0.3608,67522.0,67521.0,0.074076]
[1730648336982,0.3618,67522.0,67521.0,0.074076]
[1730648337474,0.3608,67532.0,67531.0,0.074065]
[1730648339584,0.3668,67532.0,67531.0,0.074065]
[1730648339985,0.3728,67532.0,67531.0,0.074065]
[1730648342384,0.012,67532.0,67531.0,0.2961067]
[1730648343573,0.3608,67554.0,67543.0,0.074052]
[1730648343777,0.3608,67572.0,67548.0,0.3608]
[1730648343978,0.3608,67572.0,67571.0,0.074022]
[1730648345683,0.3748,67572.0,67571.0,0.074022]
[1730648345879,0.3888,67572.0,67571.0,0.074022]
[1730648346485,0.04806492,67589.0,67571.0,0.074022]
[1730648346486,0.3608,67597.0,67596.0,0.073994]
[1730648346703,0.3608,67597.0,67577.0,0.3608]
[1730648346879,0.074001,67590.0,67583.0,0.074008]
[1730648347194,0.3608,67591.0,67589.0,0.074001]
[1730648347583,0.3608,67591.0,67586.0,0.074005]
[1730648347584,0.074001,67590.0,67586.0,0.074005]
[1730648347894,0.3608,67591.0,67589.0,0.074002]
[1730648348194,0.3608,67591.0,67587.0,0.074003]
[1730648348491,0.074002,67589.0,67587.0,0.074003]
[1730648348893,0.3608,67591.0,67587.0,0.074003]
[1730648349082,0.005,67590.0,67589.0,0.001]
[1730648349490,0.005,67590.0,67589.0,0.075002]
[1730648349691,0.3698,67591.0,67590.0,0.074001]
[1730648349881,0.0151416,67593.0,67587.0,0.001]
[1730648350079,0.36292001,67594.0,67587.0,0.002]
[1730648350279,0.3608,67594.0,67593.0,0.073998]
[1730648352594,0.3698,67594.0,67593.0,0.074998]
[1730648353697,0.3748,67594.0,67593.0,0.075998]
[1730648354587,0.3748,67594.0,67593.0,0.002]
[1730648354994,0.3748,67594.0,67593.0,0.075998]
[1730648355892,0.014,67594.0,67593.0,0.075998]
[1730648356704,0.014,67594.0,67593.0,0.519838]
[1730648357292,0.014,67594.0,67593.0,0.075998]
[1730648358199,0.014,67594.0,67593.0,0.519838]
[1730648358886,0.014,67594.0,67593.0,0.74135731]
[1730648360597,0.0315,67611.0,67604.0,0.073986]
[1730648360792,0.01550504,67614.0,67604.0,0.83956]
[1730648360993,0.0022186,67635.0,67634.0,0.073953]
[1730648362305,0.0162186,67635.0,67634.0,0.074953]
[1730648362690,0.0162186,67635.0,67634.0,0.879313]
[1730648362889,0.3608,67643.0,67642.0,0.073944]
[1730648363298,0.3608,67643.0,67642.0,0.517464]
[1730648363496,0.0311,67652.0,67651.0,0.073934]
[1730648363703,0.00221795,67658.0,67651.0,0.073934]
[1730648364012,0.3608,67662.0,67661.0,0.073923]
[1730648364802,0.073908,67675.0,67669.0,0.073914]
[1730648365008,0.36301724,67677.0,67661.0,0.3608]
[1730648365390,0.00221724,67677.0,67676.0,0.073907]
[1730648366709,0.01534456,67688.0,67687.0,0.073895]
[1730648366898,0.3608,67716.0,67687.0,1.13948]
[1730648366899,0.00212001,67709.0,67687.0,1.13948]
[1730648367094,0.073865,67714.0,67699.0,0.073882]
[1730648367499,0.073865,67714.0,67699.0,0.517002]
[1730648367699,0.0154284,67712.0,67699.0,0.517002]
[1730648368004,0.3608,67716.0,67699.0,0.73999398]
[1730648368204,0.0329,67718.0,67699.0,0.73999398]
[1730648368205,0.3608,67724.0,67699.0,1.51867398]
[1730648368405,0.3608,67724.0,67723.0,0.073856]
[1730648368596,0.0315,67730.0,67723.0,0.3608]
[1730648368798,0.0315,67730.0,67729.0,0.073849]
[1730648371404,0.073856,67723.0,67715.0,0.002215]
[1730648371594,0.3608,67725.0,67717.0,0.073862]
[1730648371794,0.3608,67718.0,67715.0,0.002215]
[1730648372210,0.073854,67724.0,67720.0,0.073858]
[1730648372514,0.073854,67724.0,67721.0,0.073857]
[1730648372716,0.073854,67724.0,67722.0,0.073856]
[1730648373099,0.3608,67725.0,67715.0,0.016215]
[1730648373405,0.3608,67718.0,67715.0,0.016215]
[1730648373598,0.3608,67718.0,67709.0,0.07387]
[1730648373813,0.3608,67711.0,67709.0,0.07387]
[1730648374307,0.073867,67713.0,67709.0,0.07387]
[1730648374610,0.3608,67711.0,67698.0,0.3608]
[1730648374905,0.3608,67704.0,67698.0,0.3608]
[1730648375608,0.3608,67704.0,67688.0,0.00221599]
[1730648375799,0.3608,67704.0,67693.0,0.3608]
[1730648376102,0.434677,67704.0,67699.0,0.073881]
[1730648376498,0.3608,67704.0,67698.0,0.01396]
[1730648376901,0.3608,67704.0,67698.0,0.02796]
[1730648377105,0.073882,67699.0,67698.0,0.02796]
[1730648377410,0.3608,67704.0,67698.0,0.02796]
[1730648377616,0.3608,67716.0,67703.0,0.073877]
[1730648377906,0.3608,67716.0,67698.0,0.24839334]
[1730648377907,0.43467,67710.0,67707.0,0.073872]
[1730648378603,0.3608,67710.0,67700.0,0.3608]
[1730648378910,0.073872,67709.0,67705.0,0.073875]
[1730648379304,0.073872,67709.0,67706.0,0.073874]
[1730648379797,0.073872,67709.0,67707.0,0.005]
[1730648379998,0.3608,67710.0,67708.0,0.073871]
[1730648380202,0.3608,67710.0,67707.0,0.005]
[1730648380203,0.3608,67710.0,67709.0,0.073871]
[1730648380507,0.3608,67724.0,67721.0,0.073857]
[1730648380712,0.3608,67724.0,67723.0,0.073856]
[1730648381301,0.00221582,67725.0,67724.0,0.073854]
[1730648381505,0.3608,67740.0,67724.0,0.44296]
[1730648381705,0.3608,67740.0,67726.0,0.073852]
[1730648381906,0.073848,67731.0,67726.0,0.073852]
[1730648382205,0.073848,67731.0,67723.0,0.3618]
[1730648382206,0.073848,67731.0,67728.0,0.07385]
[1730648382513,0.3608,67733.0,67723.0,0.3648]
[1730648382713,0.3608,67733.0,67732.0,0.073846]
[1730648382915,0.3608,67740.0,67729.0,0.3608]
[1730648383108,0.3608,67740.0,67738.0,0.073838]
[1730648383308,0.073841,67737.0,67735.0,0.073842]
[1730648384428,0.3608,67740.0,67730.0,0.073847]
[1730648384716,0.3608,67733.0,67726.0,0.001]
[1730648384914,0.073848,67730.0,67726.0,0.001]
[1730648385211,0.3608,67733.0,67729.0,0.073849]
[1730648385412,0.3608,67733.0,67732.0,0.073846]
[1730648385613,0.3608,67733.0,67730.0,0.001]
[1730648385805,0.073847,67731.0,67730.0,0.001]
[1730648386211,0.073847,67731.0,67729.0,0.001]
[1730648386613,0.3698,67733.0,67732.0,0.073846]
[1730648387215,0.3698,67733.0,67729.0,0.001]
[1730648387410,0.073848,67730.0,67729.0,0.001]
[1730648388519,0.073848,67730.0,67722.0,0.073856]
[1730648388520,0.073851,67727.0,67722.0,0.073856]
[1730648388706,0.073851,67727.0,67713.0,0.1206]
[1730648388707,0.434651,67727.0,67713.0,0.1206]
[1730648388907,0.007,67731.0,67715.0,0.3608]
[1730648389313,0.3608,67733.0,67732.0,0.073846]
[1730648389720,0.3608,67741.0,67736.0,0.073841]
[1730648389721,0.073839,67739.0,67736.0,0.073841]
[1730648389917,0.073839,67739.0,67737.0,0.07384]
[1730648390507,0.073839,67739.0,67738.0,0.073839]
[1730648390916,0.073839,67739.0,67729.0,0.3608]
[1730648390917,0.3608,67741.0,67740.0,0.073837]
[1730648391108,0.3937,67747.0,67737.0,0.3608]
[1730648391317,0.073835,67743.0,67742.0,0.073835]
[1730648392222,0.3937,67747.0,67738.0,0.073839]
[1730648392223,0.46753,67747.0,67738.0,0.073839]
[1730648392519,0.46753,67747.0,67745.0,0.073831]
[1730648392918,0.43463,67747.0,67746.0,0.07383]
[1730648393523,0.44663,67747.0,67746.0,0.07383]
[1730648395015,0.3728,67747.0,67746.0,0.07383]
[1730648395219,0.3728,67747.0,67746.0,0.07483]
[1730648396118,0.3728,67747.0,67746.0,0.51867]
[1730648396311,0.3728,67747.0,67746.0,0.7391947]
[1730648396928,0.012,67747.0,67746.0,0.7391947]
[1730648397815,0.012,67747.0,67746.0,0.8597947]
[1730648398213,0.3608,67756.0,67746.0,1.1597947]
[1730648398418,0.3608,67764.0,67763.0,0.073812]
[1730648399421,0.0924199,67770.0,67769.0,0.073805]
[1730648399628,0.073804,67770.0,67769.0,0.073805]
[1730648399928,0.3608,67771.0,67763.0,0.001]
[1730648399929,0.3608,67771.0,67770.0,0.073804]
[1730648400327,0.073811,67764.0,67763.0,0.001]
[1730648400623,0.434611,67764.0,67763.0,0.001]
[1730648401126,0.073815,67761.0,67755.0,0.00221387]